[Event "Early-Titled-Tuesday-Blitz-September-12-2023"]
[Site "Chess.com"]
[Date "2023.09.12"]
[Round "9"]
[White "Evgeny81"]
[Black "NicolaiMaxime"]
[Result "1-0"]
[WhiteElo "2744"]
[BlackElo "2557"]
[TimeControl "180+1"]
[EndTime "9:42:19 PDT"]
[Termination "Evgeny81 won by resignation"]

1. e4 {[%clk 0:03:00.9]} 1... c5 {[%clk 0:02:59.9]} 2. Nf3 {[%clk 0:03:00.2]}
2... Nc6 {[%clk 0:03:00.5]} 3. d4 {[%clk 0:03:00.1]} 3... cxd4 {[%clk
0:03:01.4]} 4. Nxd4 {[%clk 0:03:00.9]} 4... e5 {[%clk 0:03:02]} 5. Nb5 {[%clk
0:03:00.2]} 5... d6 {[%clk 0:03:01.6]} 6. c4 {[%clk 0:03:00.3]} 6... Be6 {[%clk
0:03:01.5]} 7. Be2 {[%clk 0:02:58.8]} 7... a6 {[%clk 0:03:01.8]} 8. N5c3 {[%clk
0:02:58.7]} 8... g6 {[%clk 0:03:02]} 9. O-O {[%clk 0:02:57.2]} 9... Bg7 {[%clk
0:03:02.5]} 10. Na3 {[%clk 0:02:50.1]} 10... Nge7 {[%clk 0:03:02.1]} 11. Nc2
{[%clk 0:02:50.5]} 11... O-O {[%clk 0:03:01.9]} 12. Ne3 {[%clk 0:02:50.5]} 12...
Rc8 {[%clk 0:03:00.2]} 13. b3 {[%clk 0:02:49.4]} 13... Nd4 {[%clk 0:02:59.9]}
14. Bb2 {[%clk 0:02:47.5]} 14... Nec6 {[%clk 0:02:51.6]} 15. Kh1 {[%clk
0:02:40.9]} 15... Nxe2 {[%clk 0:02:50.2]} 16. Nxe2 {[%clk 0:02:37.8]} 16... b5
{[%clk 0:02:48.2]} 17. Rc1 {[%clk 0:02:27.4]} 17... f5 {[%clk 0:02:35.2]} 18.
exf5 {[%clk 0:02:24.4]} 18... gxf5 {[%clk 0:02:33.7]} 19. f4 {[%clk 0:02:22.7]}
19... Qb6 {[%clk 0:02:07.8]} 20. Qxd6 {[%clk 0:02:08.6]} 20... Qxe3 {[%clk
0:01:48.4]} 21. Qxe6+ {[%clk 0:02:07]} 21... Kh8 {[%clk 0:01:49.1]} 22. Ng3
{[%clk 0:01:58.2]} 22... Rf6 {[%clk 0:00:52.1]} 23. Qxc8+ {[%clk 0:01:57.3]} 1-0

[Event "Early-Titled-Tuesday-Blitz-September-12-2023"]
[Site "Chess.com"]
[Date "2023.09.12"]
[Round "9"]
[White "MartinMatthiesen"]
[Black "Goryachkina"]
[Result "1/2-1/2"]
[WhiteElo "2524"]
[BlackElo "2650"]
[TimeControl "180+1"]
[EndTime "9:42:36 PDT"]
[Termination "Game drawn by repetition"]

1. d4 {[%clk 0:03:00.9]} 1... Nf6 {[%clk 0:02:59.5]} 2. c4 {[%clk 0:03:00.3]}
2... e6 {[%clk 0:02:59.8]} 3. Nf3 {[%clk 0:03:00]} 3... d5 {[%clk 0:02:59.5]} 4.
Nc3 {[%clk 0:02:59.8]} 4... Nbd7 {[%clk 0:02:58.1]} 5. Bf4 {[%clk 0:02:43.8]}
5... dxc4 {[%clk 0:02:55.6]} 6. e3 {[%clk 0:02:43.6]} 6... Bd6 {[%clk 0:02:55]}
7. Bxd6 {[%clk 0:02:39.1]} 7... cxd6 {[%clk 0:02:55.9]} 8. Bxc4 {[%clk
0:02:39.3]} 8... Nb6 {[%clk 0:02:56.1]} 9. Bd3 {[%clk 0:02:36.5]} 9... O-O
{[%clk 0:02:53]} 10. O-O {[%clk 0:02:35.9]} 10... Nbd5 {[%clk 0:02:51.3]} 11.
Rc1 {[%clk 0:02:28.9]} 11... Bd7 {[%clk 0:02:49.2]} 12. Qb3 {[%clk 0:02:22.4]}
12... Bc6 {[%clk 0:02:47.2]} 13. Nxd5 {[%clk 0:01:51.6]} 13... Bxd5 {[%clk
0:02:45.1]} 14. Bc4 {[%clk 0:01:51.7]} 14... Bxf3 {[%clk 0:02:35]} 15. gxf3
{[%clk 0:01:52.6]} 15... Qe7 {[%clk 0:02:35.1]} 16. Rfd1 {[%clk 0:01:46.7]}
16... h6 {[%clk 0:02:31.7]} 17. f4 {[%clk 0:01:45]} 17... Rac8 {[%clk
0:02:24.7]} 18. Bf1 {[%clk 0:01:43.9]} 18... Ne4 {[%clk 0:02:04.2]} 19. Bg2
{[%clk 0:01:37.7]} 19... d5 {[%clk 0:02:03.9]} 20. Bxe4 {[%clk 0:01:15]} 20...
dxe4 {[%clk 0:02:04]} 21. Rc4 {[%clk 0:01:07.5]} 21... Qh4 {[%clk 0:01:46.1]}
22. Rdc1 {[%clk 0:01:05.7]} 22... Qg4+ {[%clk 0:01:45.8]} 23. Kf1 {[%clk
0:01:05.2]} 23... Qh3+ {[%clk 0:01:44.4]} 24. Kg1 {[%clk 0:01:05]} 24... Qg4+
{[%clk 0:01:44.7]} 25. Kf1 {[%clk 0:01:04.9]} 25... Qh3+ {[%clk 0:01:45]} 26.
Kg1 {[%clk 0:01:04.1]} 26... Qg4+ {[%clk 0:01:39.4]} 1/2-1/2

[Event "Early-Titled-Tuesday-Blitz-September-12-2023"]
[Site "Chess.com"]
[Date "2023.09.12"]
[Round "9"]
[White "Chessdreamer2020"]
[Black "Aleksandar-Topalov"]
[Result "1-0"]
[WhiteElo "2515"]
[BlackElo "2342"]
[TimeControl "180+1"]
[EndTime "9:42:49 PDT"]
[Termination "Chessdreamer2020 won by resignation"]

1. e4 {[%clk 0:02:59.9]} 1... e6 {[%clk 0:02:59.6]} 2. Nf3 {[%clk 0:02:58.7]}
2... d5 {[%clk 0:02:59.6]} 3. Nc3 {[%clk 0:02:59.1]} 3... Nf6 {[%clk 0:02:59.8]}
4. e5 {[%clk 0:02:59.5]} 4... Ng8 {[%clk 0:03:00.1]} 5. Ne2 {[%clk 0:02:58.6]}
5... b6 {[%clk 0:02:58.6]} 6. d4 {[%clk 0:02:58.6]} 6... Qd7 {[%clk 0:02:58.5]}
7. c3 {[%clk 0:02:58.4]} 7... Ba6 {[%clk 0:02:58.6]} 8. g3 {[%clk 0:02:58.3]}
8... c5 {[%clk 0:02:57.5]} 9. h4 {[%clk 0:02:57.9]} 9... h5 {[%clk 0:02:56.3]}
10. Bh3 {[%clk 0:02:57.6]} 10... Nc6 {[%clk 0:02:56]} 11. O-O {[%clk 0:02:56.9]}
11... Nge7 {[%clk 0:02:55.3]} 12. Be3 {[%clk 0:02:54.3]} 12... cxd4 {[%clk
0:02:52.4]} 13. cxd4 {[%clk 0:02:53.5]} 13... Na5 {[%clk 0:02:48.8]} 14. b3
{[%clk 0:02:52.9]} 14... Nec6 {[%clk 0:02:45.8]} 15. Re1 {[%clk 0:02:50.6]}
15... Nb4 {[%clk 0:02:41.2]} 16. Nf4 {[%clk 0:02:46.3]} 16... Rc8 {[%clk
0:02:36.5]} 17. Rc1 {[%clk 0:02:07]} 17... Nxa2 {[%clk 0:02:31]} 18. Rxc8+
{[%clk 0:02:06.3]} 18... Qxc8 {[%clk 0:02:31.2]} 19. Qd2 {[%clk 0:02:05.9]}
19... Nb4 {[%clk 0:02:22.5]} 20. Rc1 {[%clk 0:02:05.9]} 20... Qd7 {[%clk
0:02:20.2]} 21. Qd1 {[%clk 0:02:06]} 21... Be7 {[%clk 0:02:17]} 22. Ng5 {[%clk
0:02:05.7]} 22... Bxg5 {[%clk 0:02:15.5]} 23. hxg5 {[%clk 0:02:06.6]} 23... g6
{[%clk 0:02:16]} 24. Kg2 {[%clk 0:02:00.5]} 24... Kf8 {[%clk 0:01:45.7]} 25.
Bxe6 {[%clk 0:01:39.1]} 25... fxe6 {[%clk 0:01:43]} 26. Nxg6+ {[%clk 0:01:39.3]}
26... Kg7 {[%clk 0:01:43.2]} 27. Nxh8 {[%clk 0:01:40.2]} 27... Kxh8 {[%clk
0:01:43.4]} 28. Qxh5+ {[%clk 0:01:40.2]} 28... Kg8 {[%clk 0:01:32.8]} 29. Rh1
{[%clk 0:01:38.9]} 29... Bd3 {[%clk 0:01:04.8]} 30. Qh8+ {[%clk 0:01:38]} 30...
Kf7 {[%clk 0:01:04.8]} 31. Qf6+ {[%clk 0:01:38.9]} 1-0

[Event "Early-Titled-Tuesday-Blitz-September-12-2023"]
[Site "Chess.com"]
[Date "2023.09.12"]
[Round "9"]
[White "Juicy_Fork"]
[Black "Amirreza_p"]
[Result "1-0"]
[WhiteElo "2481"]
[BlackElo "2552"]
[TimeControl "180+1"]
[EndTime "9:42:55 PDT"]
[Termination "Juicy_Fork won by resignation"]

1. e4 {[%clk 0:03:00.9]} 1... c6 {[%clk 0:02:58.8]} 2. d4 {[%clk 0:02:57.4]}
2... d5 {[%clk 0:02:57]} 3. f3 {[%clk 0:02:58]} 3... e6 {[%clk 0:02:55.4]} 4.
Nc3 {[%clk 0:02:57.7]} 4... Bb4 {[%clk 0:02:55.4]} 5. Bd2 {[%clk 0:02:53.1]}
5... Nf6 {[%clk 0:02:53.9]} 6. e5 {[%clk 0:02:49.9]} 6... Nfd7 {[%clk
0:02:52.8]} 7. a3 {[%clk 0:02:49.9]} 7... Bxc3 {[%clk 0:02:47.1]} 8. Bxc3 {[%clk
0:02:48.3]} 8... c5 {[%clk 0:02:47]} 9. f4 {[%clk 0:02:37.1]} 9... cxd4 {[%clk
0:02:44.9]} 10. Qxd4 {[%clk 0:02:36.6]} 10... Nc6 {[%clk 0:02:44.7]} 11. Qf2
{[%clk 0:02:28.6]} 11... O-O {[%clk 0:02:45]} 12. Nf3 {[%clk 0:02:23.5]} 12...
Qb6 {[%clk 0:02:45.3]} 13. Bd3 {[%clk 0:02:11.3]} 13... Nc5 {[%clk 0:02:41.5]}
14. Bxh7+ {[%clk 0:02:02.6]} 14... Kxh7 {[%clk 0:02:35.2]} 15. Qh4+ {[%clk
0:02:00.5]} 15... Kg8 {[%clk 0:02:32.4]} 16. Ng5 {[%clk 0:01:59.1]} 16... Re8
{[%clk 0:02:14.1]} 17. Qh7+ {[%clk 0:01:58.4]} 17... Kf8 {[%clk 0:02:14.3]} 18.
Qh8+ {[%clk 0:01:48]} 18... Ke7 {[%clk 0:02:14.2]} 19. Qxg7 {[%clk 0:01:47.9]}
19... Nd8 {[%clk 0:02:14.5]} 20. O-O-O {[%clk 0:01:42.1]} 20... a5 {[%clk
0:02:00.6]} 21. h4 {[%clk 0:01:41.5]} 21... Rf8 {[%clk 0:01:26]} 22. h5 {[%clk
0:01:37.2]} 22... Bd7 {[%clk 0:01:26.3]} 23. h6 {[%clk 0:01:27.2]} 23... Ne4
{[%clk 0:01:09.3]} 24. Nxe4 {[%clk 0:01:21.6]} 24... dxe4 {[%clk 0:01:10.2]} 25.
Qf6+ {[%clk 0:01:19.8]} 25... Ke8 {[%clk 0:01:09]} 26. h7 {[%clk 0:01:20.1]} 1-0

[Event "Early-Titled-Tuesday-Blitz-September-12-2023"]
[Site "Chess.com"]
[Date "2023.09.12"]
[Round "9"]
[White "Chessbard1972"]
[Black "VOneChess"]
[Result "1-0"]
[WhiteElo "2450"]
[BlackElo "2203"]
[TimeControl "180+1"]
[EndTime "9:43:10 PDT"]
[Termination "Chessbard1972 won on time"]

1. d4 {[%clk 0:03:00.9]} 1... Nf6 {[%clk 0:02:59.5]} 2. Nf3 {[%clk 0:03:01]}
2... e6 {[%clk 0:02:58.9]} 3. c4 {[%clk 0:02:59.8]} 3... Bb4+ {[%clk 0:02:57.8]}
4. Nbd2 {[%clk 0:02:59.2]} 4... b6 {[%clk 0:02:51.7]} 5. a3 {[%clk 0:02:58.8]}
5... Bxd2+ {[%clk 0:02:49.2]} 6. Bxd2 {[%clk 0:02:58.8]} 6... Bb7 {[%clk
0:02:49.7]} 7. Bf4 {[%clk 0:02:58.8]} 7... O-O {[%clk 0:02:50]} 8. h3 {[%clk
0:02:58.5]} 8... d6 {[%clk 0:02:49.8]} 9. e3 {[%clk 0:02:58.5]} 9... Nbd7 {[%clk
0:02:50.1]} 10. Be2 {[%clk 0:02:58.3]} 10... Qe7 {[%clk 0:02:50.6]} 11. O-O
{[%clk 0:02:57.1]} 11... e5 {[%clk 0:02:48.9]} 12. Bh2 {[%clk 0:02:55.7]} 12...
Rfe8 {[%clk 0:02:48.2]} 13. b4 {[%clk 0:02:51.9]} 13... Ne4 {[%clk 0:02:44.9]}
14. Qc2 {[%clk 0:02:49.7]} 14... exd4 {[%clk 0:02:36.5]} 15. exd4 {[%clk
0:02:41.9]} 15... Ndf6 {[%clk 0:02:33.1]} 16. Bd3 {[%clk 0:02:36.6]} 16... Qd7
{[%clk 0:02:24.9]} 17. Rae1 {[%clk 0:02:31.6]} 17... Qf5 {[%clk 0:02:23.5]} 18.
Nd2 {[%clk 0:02:21.5]} 18... Qg6 {[%clk 0:00:45.1]} 19. f3 {[%clk 0:02:19.2]}
19... d5 {[%clk 0:00:05.1]} 20. cxd5 {[%clk 0:02:12.7]} 20... Nxd5 {[%clk
0:00:03.2]} 21. fxe4 {[%clk 0:02:08.1]} 21... Nf6 {[%clk 0:00:01.6]} 22. d5
{[%clk 0:01:59.9]} 22... Rad8 {[%clk 0:00:01.3]} 23. Nf3 {[%clk 0:01:56.7]} 1-0

[Event "Early-Titled-Tuesday-Blitz-September-12-2023"]
[Site "Chess.com"]
[Date "2023.09.12"]
[Round "9"]
[White "Daniel_Salinas"]
[Black "Fh2411"]
[Result "0-1"]
[WhiteElo "2384"]
[BlackElo "2596"]
[TimeControl "180+1"]
[EndTime "9:43:31 PDT"]
[Termination "Fh2411 won by resignation"]

1. Nf3 {[%clk 0:02:41.7]} 1... Nf6 {[%clk 0:02:55.8]} 2. g3 {[%clk 0:02:42]}
2... g6 {[%clk 0:02:50.8]} 3. Bg2 {[%clk 0:02:42.5]} 3... Bg7 {[%clk 0:02:51.4]}
4. O-O {[%clk 0:02:42.8]} 4... O-O {[%clk 0:02:52.1]} 5. d4 {[%clk 0:02:43.2]}
5... d5 {[%clk 0:02:52.2]} 6. c4 {[%clk 0:02:43.3]} 6... c6 {[%clk 0:02:52.8]}
7. cxd5 {[%clk 0:02:43.6]} 7... cxd5 {[%clk 0:02:53.7]} 8. Nc3 {[%clk
0:02:44.2]} 8... Nc6 {[%clk 0:02:41.3]} 9. Ne5 {[%clk 0:02:43.5]} 9... e6 {[%clk
0:02:35.3]} 10. Nxc6 {[%clk 0:02:40.1]} 10... bxc6 {[%clk 0:02:36.2]} 11. Bf4
{[%clk 0:02:40.7]} 11... Ba6 {[%clk 0:02:33.2]} 12. Na4 {[%clk 0:02:38.4]} 12...
Nd7 {[%clk 0:02:21.4]} 13. Rc1 {[%clk 0:02:31.6]} 13... Qa5 {[%clk 0:02:09.2]}
14. Bd6 {[%clk 0:02:03.5]} 14... Rfc8 {[%clk 0:02:06]} 15. b3 {[%clk 0:02:02.8]}
15... Bb5 {[%clk 0:01:48.8]} 16. Nc3 {[%clk 0:01:31]} 16... Qb6 {[%clk
0:01:37.8]} 17. a4 {[%clk 0:00:28.2]} 17... Ba6 {[%clk 0:01:35.3]} 18. e3 {[%clk
0:00:21.7]} 18... Bxf1 {[%clk 0:01:33.7]} 19. Bxf1 {[%clk 0:00:22.6]} 19... c5
{[%clk 0:01:27.7]} 20. dxc5 {[%clk 0:00:21.4]} 20... Nxc5 {[%clk 0:01:27.7]} 21.
Bf4 {[%clk 0:00:21.3]} 21... Nxb3 {[%clk 0:01:26]} 22. Rc2 {[%clk 0:00:18.9]}
22... Bxc3 {[%clk 0:01:22.6]} 0-1

[Event "Early-Titled-Tuesday-Blitz-September-12-2023"]
[Site "Chess.com"]
[Date "2023.09.12"]
[Round "9"]
[White "emeli_chess"]
[Black "tteshan"]
[Result "1-0"]
[WhiteElo "2367"]
[BlackElo "2525"]
[TimeControl "180+1"]
[EndTime "9:43:37 PDT"]
[Termination "emeli_chess won by resignation"]

1. d4 {[%clk 0:03:00.9]} 1... d5 {[%clk 0:02:57.5]} 2. c4 {[%clk 0:03:00.9]}
2... dxc4 {[%clk 0:02:58.4]} 3. Nf3 {[%clk 0:03:00.4]} 3... Nf6 {[%clk
0:02:57.5]} 4. e3 {[%clk 0:03:00.3]} 4... Bg4 {[%clk 0:02:58.1]} 5. Bxc4 {[%clk
0:02:59.5]} 5... e6 {[%clk 0:02:58.7]} 6. h3 {[%clk 0:02:57.7]} 6... Bh5 {[%clk
0:02:59.1]} 7. Nc3 {[%clk 0:02:55.8]} 7... a6 {[%clk 0:02:59.4]} 8. g4 {[%clk
0:02:53.4]} 8... Bg6 {[%clk 0:02:59.9]} 9. Nh4 {[%clk 0:02:52.4]} 9... Nbd7
{[%clk 0:02:53.7]} 10. Nxg6 {[%clk 0:02:49.2]} 10... hxg6 {[%clk 0:02:53.4]} 11.
Bf1 {[%clk 0:02:48.6]} 11... c5 {[%clk 0:02:53.5]} 12. Bg2 {[%clk 0:02:47.8]}
12... Qc7 {[%clk 0:02:53.3]} 13. g5 {[%clk 0:02:42.2]} 13... Nh7 {[%clk
0:02:38.9]} 14. h4 {[%clk 0:02:42.4]} 14... Be7 {[%clk 0:02:36]} 15. Qf3 {[%clk
0:02:36.8]} 15... Rb8 {[%clk 0:02:31.1]} 16. d5 {[%clk 0:02:23]} 16... O-O
{[%clk 0:02:11.3]} 17. dxe6 {[%clk 0:02:19.5]} 17... fxe6 {[%clk 0:02:12.2]} 18.
Qe4 {[%clk 0:02:18]} 18... Rf7 {[%clk 0:01:50.2]} 19. Qxe6 {[%clk 0:02:09]}
19... Ndf8 {[%clk 0:01:38.6]} 20. Qg4 {[%clk 0:01:56.3]} 20... Rf5 {[%clk
0:01:24.2]} 21. Nd5 {[%clk 0:01:49.9]} 21... Qd6 {[%clk 0:01:17.3]} 22. Nxe7+
{[%clk 0:01:49.5]} 22... Qxe7 {[%clk 0:01:18.2]} 23. Bd2 {[%clk 0:01:48.1]}
23... Rd8 {[%clk 0:01:08.6]} 24. Bc3 {[%clk 0:01:45.4]} 24... b5 {[%clk
0:01:01.2]} 25. a3 {[%clk 0:01:41.3]} 25... Qf7 {[%clk 0:00:56.8]} 26. O-O
{[%clk 0:01:39.9]} 26... c4 {[%clk 0:00:37.9]} 27. Rad1 {[%clk 0:01:39.1]} 27...
Rxd1 {[%clk 0:00:34.7]} 28. Rxd1 {[%clk 0:01:38.7]} 28... Kh8 {[%clk 0:00:26.7]}
29. f4 {[%clk 0:01:29]} 29... Qe7 {[%clk 0:00:24.3]} 30. e4 {[%clk 0:01:26.8]}
30... Qc5+ {[%clk 0:00:22.1]} 31. Bd4 {[%clk 0:01:25.4]} 1-0

[Event "Early-Titled-Tuesday-Blitz-September-12-2023"]
[Site "Chess.com"]
[Date "2023.09.12"]
[Round "9"]
[White "Rosh1610"]
[Black "aghasiyevkamal"]
[Result "1-0"]
[WhiteElo "2459"]
[BlackElo "2548"]
[TimeControl "180+1"]
[EndTime "9:43:40 PDT"]
[Termination "Rosh1610 won by resignation"]

1. e4 {[%clk 0:02:53.2]} 1... e5 {[%clk 0:02:59.4]} 2. Nf3 {[%clk 0:02:52.8]}
2... Nc6 {[%clk 0:02:59]} 3. Bb5 {[%clk 0:02:52.1]} 3... a6 {[%clk 0:02:58.9]}
4. Ba4 {[%clk 0:02:52.3]} 4... Nf6 {[%clk 0:02:58.2]} 5. O-O {[%clk 0:02:52]}
5... b5 {[%clk 0:02:57.3]} 6. Bb3 {[%clk 0:02:49.6]} 6... Bc5 {[%clk 0:02:57.4]}
7. Re1 {[%clk 0:02:49.1]} 7... d6 {[%clk 0:02:54.8]} 8. c3 {[%clk 0:02:48]} 8...
h6 {[%clk 0:02:48.2]} 9. d4 {[%clk 0:02:46.4]} 9... Bb6 {[%clk 0:02:48.2]} 10.
h3 {[%clk 0:02:45.8]} 10... O-O {[%clk 0:02:46.1]} 11. Be3 {[%clk 0:02:42.9]}
11... exd4 {[%clk 0:02:35.3]} 12. cxd4 {[%clk 0:02:42.3]} 12... Bb7 {[%clk
0:02:32.8]} 13. Nbd2 {[%clk 0:02:40.5]} 13... Ne7 {[%clk 0:02:20.2]} 14. Bc2
{[%clk 0:02:37.7]} 14... c5 {[%clk 0:02:15.5]} 15. e5 {[%clk 0:02:20.6]} 15...
dxe5 {[%clk 0:02:04.8]} 16. dxe5 {[%clk 0:02:13.1]} 16... Nfd5 {[%clk
0:02:04.5]} 17. Qe2 {[%clk 0:01:49.8]} 17... Nxe3 {[%clk 0:01:59.4]} 18. Qxe3
{[%clk 0:01:50.7]} 18... c4 {[%clk 0:01:58.5]} 19. Qf4 {[%clk 0:01:49.7]} 19...
Qc7 {[%clk 0:01:48.3]} 20. Ne4 {[%clk 0:01:45.8]} 20... Ng6 {[%clk 0:01:36.3]}
21. Qg3 {[%clk 0:01:43.6]} 21... Rae8 {[%clk 0:01:29.6]} 22. Rad1 {[%clk
0:01:25.2]} 22... Nxe5 {[%clk 0:01:10.7]} 23. Nf6+ {[%clk 0:01:22.5]} 23... Kh8
{[%clk 0:01:10]} 24. Nxe5 {[%clk 0:01:01]} 24... Rxe5 {[%clk 0:00:58.8]} 25.
Rxe5 {[%clk 0:00:56.1]} 25... gxf6 {[%clk 0:00:58.4]} 26. Qh4 {[%clk 0:00:55.9]}
1-0

[Event "Early-Titled-Tuesday-Blitz-September-12-2023"]
[Site "Chess.com"]
[Date "2023.09.12"]
[Round "9"]
[White "Mr_Lion22"]
[Black "ferrufino64"]
[Result "1-0"]
[WhiteElo "2432"]
[BlackElo "2279"]
[TimeControl "180+1"]
[EndTime "9:43:41 PDT"]
[Termination "Mr_Lion22 won by resignation"]

1. d4 {[%clk 0:02:55.3]} 1... d5 {[%clk 0:02:59.3]} 2. c4 {[%clk 0:02:55.9]}
2... e6 {[%clk 0:02:59.5]} 3. Nc3 {[%clk 0:02:56.7]} 3... Nf6 {[%clk 0:02:59.7]}
4. cxd5 {[%clk 0:02:57.3]} 4... Nxd5 {[%clk 0:02:53.4]} 5. e4 {[%clk 0:02:56.6]}
5... Nxc3 {[%clk 0:02:53.1]} 6. bxc3 {[%clk 0:02:57]} 6... Be7 {[%clk 0:02:54]}
7. Nf3 {[%clk 0:02:57.2]} 7... O-O {[%clk 0:02:54.9]} 8. Bd3 {[%clk 0:02:54.4]}
8... c5 {[%clk 0:02:55.2]} 9. O-O {[%clk 0:02:54.7]} 9... Nc6 {[%clk 0:02:55.4]}
10. e5 {[%clk 0:02:53.6]} 10... cxd4 {[%clk 0:02:55.7]} 11. cxd4 {[%clk
0:02:54.5]} 11... b6 {[%clk 0:02:47.3]} 12. Qc2 {[%clk 0:02:32.3]} 12... Nb4
{[%clk 0:02:29.6]} 13. Bxh7+ {[%clk 0:02:32.4]} 13... Kh8 {[%clk 0:02:29.8]} 14.
Qb1 {[%clk 0:02:16.4]} 14... Ba6 {[%clk 0:02:27.2]} 15. Re1 {[%clk 0:02:05.3]}
15... g6 {[%clk 0:02:22]} 16. Bxg6 {[%clk 0:02:05.3]} 16... fxg6 {[%clk
0:02:22.1]} 17. Qxg6 {[%clk 0:02:06.1]} 17... Bd3 {[%clk 0:02:18.5]} 18. Qh6+
{[%clk 0:01:51.8]} 18... Bh7 {[%clk 0:02:17.8]} 19. Ng5 {[%clk 0:01:49.1]} 19...
Bxg5 {[%clk 0:02:08.8]} 20. Bxg5 {[%clk 0:01:50]} 20... Qe8 {[%clk 0:02:04.9]}
21. Bf6+ {[%clk 0:01:49]} 21... Rxf6 {[%clk 0:02:05.2]} 22. Qxf6+ {[%clk
0:01:49.9]} 22... Kg8 {[%clk 0:02:05.5]} 23. Re3 {[%clk 0:01:50.6]} 23... Qf7
{[%clk 0:01:32.6]} 24. Rg3+ {[%clk 0:01:44]} 24... Kf8 {[%clk 0:01:32.7]} 25.
Qh8+ {[%clk 0:01:39.3]} 25... Bg8 {[%clk 0:01:30.7]} 26. Rf3 {[%clk 0:01:27.2]}
26... Qxf3 {[%clk 0:01:30]} 27. gxf3 {[%clk 0:01:28.1]} 27... Nd5 {[%clk
0:01:30.3]} 28. Rc1 {[%clk 0:01:27]} 28... Rd8 {[%clk 0:01:29.9]} 29. Rc6 {[%clk
0:01:20.1]} 29... Ke7 {[%clk 0:01:28.3]} 30. Qh4+ {[%clk 0:01:15.1]} 30... Ke8
{[%clk 0:01:28.5]} 31. f4 {[%clk 0:01:10.9]} 31... Bf7 {[%clk 0:01:25.4]} 32. f5
{[%clk 0:01:10.4]} 32... exf5 {[%clk 0:01:23.7]} 33. e6 {[%clk 0:01:10.9]} 33...
Bg8 {[%clk 0:01:23.5]} 34. Qh5+ {[%clk 0:01:10]} 34... Kf8 {[%clk 0:01:23.2]}
35. Qxf5+ {[%clk 0:00:47.1]} 35... Ke7 {[%clk 0:01:23.3]} 36. Qg5+ {[%clk
0:00:45.7]} 36... Kf8 {[%clk 0:01:22.9]} 37. Qxd8+ {[%clk 0:00:44.6]} 37... Kg7
{[%clk 0:01:22.9]} 1-0

[Event "Early-Titled-Tuesday-Blitz-September-12-2023"]
[Site "Chess.com"]
[Date "2023.09.12"]
[Round "9"]
[White "Raskolnikov6"]
[Black "Shuvalov"]
[Result "0-1"]
[WhiteElo "2270"]
[BlackElo "2424"]
[TimeControl "180+1"]
[EndTime "9:43:46 PDT"]
[Termination "Shuvalov won by checkmate"]

1. d4 {[%clk 0:03:00.9]} 1... Nf6 {[%clk 0:02:58.6]} 2. c4 {[%clk 0:02:57.9]}
2... g6 {[%clk 0:02:57.7]} 3. Nc3 {[%clk 0:02:56]} 3... d5 {[%clk 0:02:57.6]} 4.
Nf3 {[%clk 0:02:54.5]} 4... Bg7 {[%clk 0:02:57.5]} 5. Bg5 {[%clk 0:02:55.2]}
5... Ne4 {[%clk 0:02:57.1]} 6. Bf4 {[%clk 0:02:55.7]} 6... O-O {[%clk
0:02:52.2]} 7. e3 {[%clk 0:02:52]} 7... c5 {[%clk 0:02:51.6]} 8. cxd5 {[%clk
0:02:51.5]} 8... Bf5 {[%clk 0:02:49.6]} 9. Nxe4 {[%clk 0:02:34.4]} 9... Bxe4
{[%clk 0:02:49]} 10. Nd2 {[%clk 0:02:32.5]} 10... Bxd5 {[%clk 0:02:43.8]} 11. e4
{[%clk 0:02:30.1]} 11... Be6 {[%clk 0:02:37.1]} 12. d5 {[%clk 0:02:28.1]} 12...
Bc8 {[%clk 0:02:35.5]} 13. Qc2 {[%clk 0:02:14.3]} 13... e6 {[%clk 0:02:34.2]}
14. d6 {[%clk 0:01:57.4]} 14... e5 {[%clk 0:02:30.4]} 15. Be3 {[%clk 0:01:55.9]}
15... b6 {[%clk 0:02:28.7]} 16. Nc4 {[%clk 0:01:52.3]} 16... Be6 {[%clk
0:02:25.2]} 17. O-O-O {[%clk 0:01:51.7]} 17... Nc6 {[%clk 0:02:25.1]} 18. h4
{[%clk 0:01:23.5]} 18... h5 {[%clk 0:02:18.8]} 19. f3 {[%clk 0:01:18.6]} 19...
Nd4 {[%clk 0:02:16.6]} 20. Qf2 {[%clk 0:01:16.6]} 20... b5 {[%clk 0:02:13]} 21.
Na3 {[%clk 0:01:04.9]} 21... a6 {[%clk 0:02:09]} 22. f4 {[%clk 0:00:59.9]} 22...
Bxa2 {[%clk 0:01:59.1]} 23. f5 {[%clk 0:00:57]} 23... Qxd6 {[%clk 0:01:53.7]}
24. g4 {[%clk 0:00:54.5]} 24... hxg4 {[%clk 0:01:48.1]} 25. h5 {[%clk
0:00:53.5]} 25... gxf5 {[%clk 0:01:47.3]} 26. exf5 {[%clk 0:00:50.2]} 26... Rad8
{[%clk 0:01:43.9]} 27. Bd3 {[%clk 0:00:31.4]} 27... c4 {[%clk 0:01:36.9]} 28.
Be4 {[%clk 0:00:26.5]} 28... c3 {[%clk 0:01:36.7]} 29. h6 {[%clk 0:00:22.3]}
29... Bf6 {[%clk 0:01:32.9]} 30. Rdg1 {[%clk 0:00:19.2]} 30... Kh8 {[%clk
0:01:31.6]} 31. Rxg4 {[%clk 0:00:17.2]} 31... Rc8 {[%clk 0:01:27.4]} 32. Nc2
{[%clk 0:00:12.9]} 32... Nb3# {[%clk 0:01:25.2]} 0-1

[Event "Early-Titled-Tuesday-Blitz-September-12-2023"]
[Site "Chess.com"]
[Date "2023.09.12"]
[Round "9"]
[White "jguerramzllo"]
[Black "MatyChess1"]
[Result "1-0"]
[WhiteElo "2866"]
[BlackElo "2698"]
[TimeControl "180+1"]
[EndTime "9:43:49 PDT"]
[Termination "jguerramzllo won by checkmate"]

1. e4 {[%clk 0:03:00.9]} 1... c6 {[%clk 0:03:00.5]} 2. d4 {[%clk 0:03:00.2]}
2... d5 {[%clk 0:03:01.4]} 3. Nc3 {[%clk 0:02:59.1]} 3... dxe4 {[%clk
0:03:01.4]} 4. Nxe4 {[%clk 0:02:59.4]} 4... Nf6 {[%clk 0:03:02.3]} 5. Nxf6+
{[%clk 0:02:59]} 5... exf6 {[%clk 0:03:03.2]} 6. c3 {[%clk 0:02:57.9]} 6... Bd6
{[%clk 0:03:03.6]} 7. Bd3 {[%clk 0:02:57.5]} 7... O-O {[%clk 0:03:04]} 8. Qc2
{[%clk 0:02:58]} 8... Re8+ {[%clk 0:03:04.5]} 9. Ne2 {[%clk 0:02:58.3]} 9... h5
{[%clk 0:03:05.2]} 10. O-O {[%clk 0:02:36.3]} 10... Nd7 {[%clk 0:02:56.2]} 11.
Bd2 {[%clk 0:02:33.2]} 11... Nf8 {[%clk 0:02:54.9]} 12. Rae1 {[%clk 0:02:32.9]}
12... Qc7 {[%clk 0:02:50.9]} 13. h3 {[%clk 0:02:27.8]} 13... Bd7 {[%clk
0:02:44.4]} 14. c4 {[%clk 0:02:06.6]} 14... b6 {[%clk 0:02:19.9]} 15. b4 {[%clk
0:02:00.4]} 15... Qb8 {[%clk 0:02:18.3]} 16. f4 {[%clk 0:01:44.2]} 16... g6
{[%clk 0:02:03.5]} 17. f5 {[%clk 0:01:40.1]} 17... g5 {[%clk 0:02:03]} 18. a3
{[%clk 0:01:12.4]} 18... Re7 {[%clk 0:02:01.9]} 19. Nc3 {[%clk 0:01:11.6]} 19...
Nh7 {[%clk 0:01:42.9]} 20. Ne4 {[%clk 0:01:09.9]} 20... Bh2+ {[%clk 0:00:49.2]}
21. Kh1 {[%clk 0:01:09.8]} 21... Kg7 {[%clk 0:00:50.1]} 22. Qd1 {[%clk
0:01:07.1]} 22... h4 {[%clk 0:00:44.5]} 23. Qg4 {[%clk 0:00:58.7]} 23... Kh8
{[%clk 0:00:39.3]} 24. Qh5 {[%clk 0:00:50.8]} 24... Kg7 {[%clk 0:00:36.8]} 25.
Nxf6 {[%clk 0:00:46.5]} 25... Kxf6 {[%clk 0:00:33.2]} 26. Qh6# {[%clk
0:00:46.1]} 1-0